bitfinex/quotes_ETHUSD_20241006
["timestamp","ask_amount","ask_price","bid_price","bid_amount"]
[1728258524861,0.05039155,2441.6,2441.5,3.27665]
[1728258525039,0.8271,2441.8,2441.6,3.27647]
[1728258525423,0.05048736,2441.7,2441.6,3.27647]
[1728258525630,15.46599294,2442.3,2441.6,3.27647]
[1728258525631,0.8248,2442.6,2441.6,6.89150043]
[1728258525867,0.8248,2442.6,2442.4,3.27535]
[1728258526158,3.27474,2443.0,2442.4,3.27535]
[1728258526159,0.04590353,2442.5,2442.4,3.07024921]
[1728258526525,0.775,2442.9,2442.7,3.27499]
[1728258526959,0.04602736,2442.8,2442.6,1.74028294]
[1728258527254,0.04602736,2442.8,2442.5,3.27524]
[1728258528164,0.04602736,2442.8,2442.5,6.55048]
[1728258529161,0.04602736,2442.8,2442.6,3.27518]
[1728258530155,0.77102736,2442.9,2442.6,3.27518]
[1728258530334,0.04414885,2442.7,2442.6,3.27518]
[1728258530535,0.77102736,2442.9,2442.6,3.27518]
[1728258530777,0.04414885,2442.7,2442.6,3.27518]
[1728258531168,0.77102736,2442.9,2442.6,3.27518]
[1728258531327,0.04408414,2442.7,2442.6,3.27518]
[1728258531527,0.77102736,2442.9,2442.5,3.10842761]
[1728258531864,0.77102736,2442.9,2442.7,3.27504]
[1728258532228,0.77102736,2442.9,2442.7,3.09082006]
[1728258534525,0.77102736,2442.9,2442.5,3.10842761]
[1728258534727,3.27499,2442.8,2442.3,3.2755]
[1728258534965,0.10234564,2442.8,2442.4,3.27545]
[1728258535280,0.10234564,2442.8,2442.4,3.14111651]
[1728258535859,0.10234564,2442.8,2442.5,3.27532]
[1728258536067,0.10234564,2442.8,2442.3,6.55099]
[1728258536476,0.10234564,2442.8,2442.4,3.27542]
[1728258537552,0.10234564,2442.8,2442.5,3.27531]
[1728258537752,0.10234564,2442.8,2442.4,3.27546]
[1728258537964,0.04414885,2442.7,2442.5,3.27531]
[1728258538173,0.04414885,2442.7,2442.4,3.27546]
[1728258538355,0.10234564,2442.8,2442.4,3.16797586]
[1728258538544,0.04415144,2442.6,2442.4,3.16797586]
[1728258538746,0.10234564,2442.8,2442.4,3.16797586]
[1728258539236,0.04415345,2442.7,2442.4,3.16797586]
[1728258539442,0.10234564,2442.8,2442.4,3.16797586]
[1728258539774,0.04406518,2442.6,2442.4,3.16797586]
[1728258539960,0.10234564,2442.8,2442.2,5.01600294]
[1728258540166,0.0439769,2442.5,2442.3,3.27559]
[1728258540344,0.87035192,2442.7,2442.3,3.27559]
[1728258540546,0.04388861,2442.4,2442.3,3.27559]
[1728258540753,0.87035192,2442.7,2442.3,3.27559]
[1728258540983,0.04391018,2442.4,2442.3,3.27559]
[1728258541141,0.87035192,2442.7,2442.3,3.27559]
[1728258541343,0.87035192,2442.7,2442.2,5.01600294]
[1728258541344,0.04393175,2442.4,2442.2,4.93316412]
[1728258541543,4.14542192,2442.7,2442.2,4.93316412]
[1728258541862,0.8168,2442.2,2441.8,3.27617]
[1728258542347,0.8168,2442.2,2441.8,6.55237]
[1728258542348,0.0436884,2442.1,2441.8,6.55237]
[1728258542688,0.0436884,2442.1,2441.9,3.27609]
[1728258543278,0.0436884,2442.1,2442.0,3.276]
[1728258543850,0.0436884,2442.1,2441.9,3.27613]
[1728258544690,0.0436884,2442.1,2441.9,3.19784159]
[1728258545445,0.0436884,2442.1,2442.0,3.276]
[1728258547249,0.0436884,2442.1,2441.9,3.19784159]
[1728258547453,0.0436884,2442.1,2441.9,3.0674964]
[1728258547862,0.0436884,2442.1,2442.0,3.276]
[1728258548886,0.7928,2442.4,2442.0,3.276]
[1728258549185,0.04364526,2442.1,2442.0,3.276]
[1728258549347,0.7928,2442.4,2442.0,3.276]
[1728258549692,1.53738667,2442.4,2441.9,3.0674964]
[1728258549849,0.04384344,2442.3,2441.9,6.3435564]
[1728258550192,0.04384344,2442.3,2441.9,3.0674964]
[1728258550352,0.04384344,2442.3,2441.9,6.3435564]
[1728258550568,0.04384344,2442.3,2441.9,6.25212069]
[1728258550984,0.04384344,2442.3,2441.9,2.97606069]
[1728258551855,0.04384344,2442.3,2441.9,6.25212069]
[1728258552253,0.04384344,2442.3,2441.9,2.97606069]
[1728258553146,0.14621014,2442.3,2441.9,2.97606069]
[1728258553351,0.04384344,2442.3,2441.9,6.25213069]
[1728258553652,0.04384344,2442.3,2441.9,6.05592189]
[1728258553851,0.04384344,2442.3,2441.9,6.05591189]
[1728258555165,0.04384344,2442.3,2441.9,2.77985189]
[1728258555367,0.14621014,2442.3,2441.9,2.77985189]
[1728258556265,0.89521715,2442.3,2441.7,3.2763]
[1728258556588,3.27609,2442.0,2441.5,6.55317]
[1728258556795,3.27609,2442.0,2441.5,6.44430994]
[1728258556992,0.04346862,2441.9,2441.6,3.27652]
[1728258557295,3.27609,2442.0,2441.6,3.27652]
[1728258557593,0.74770755,2442.0,2441.6,3.27652]
[1728258557914,0.04346862,2441.9,2441.7,3.27638]
[1728258558080,0.10237554,2442.1,2441.7,3.27638]
[1728258558452,0.04363789,2442.0,2441.7,3.27638]
[1728258558879,0.04363789,2442.0,2441.5,6.55312]
[1728258559267,0.04363789,2442.0,2441.6,3.2765]
[1728258559699,0.04363789,2442.0,2441.6,3.15411612]
[1728258562492,0.04363789,2442.0,2441.7,3.2764]
[1728258562993,0.04363789,2442.0,2441.7,3.12642493]
[1728258564868,0.04363789,2442.0,2441.7,6.40275493]
[1728258565218,0.04363789,2442.0,2441.8,3.27625]
[1728258565671,0.04363789,2442.0,2441.7,3.12642493]
[1728258565872,0.04363789,2442.0,2441.7,2.96820525]
[1728258566185,0.04363789,2442.0,2441.7,6.24453525]
[1728258568178,0.04363789,2442.0,2441.8,3.27626]
[1728258568904,0.04363789,2442.0,2441.8,3.05487202]
[1728258569962,0.04363789,2442.0,2441.7,3.76668707]
[1728258570164,0.04363789,2442.0,2441.7,7.04301707]
[1728258571997,0.04363789,2442.0,2441.7,6.86387491]
[1728258573071,0.04363789,2442.0,2441.8,3.27626]
[1728258573273,0.04363789,2442.0,2441.7,0.79848182]
[1728258573578,0.04363789,2442.0,2441.6,3.27642]
[1728258574301,0.04363789,2442.0,2441.6,5.01670294]
[1728258575067,0.04363789,2442.0,2441.7,3.27627]
[1728258575864,0.04363789,2442.0,2441.8,3.2762]
[1728258576063,0.8228,2442.2,2441.8,5.01648294]
[1728258576292,0.7662,2442.0,2441.7,3.2764]
[1728258576809,0.04345392,2441.9,2441.7,3.2764]
[1728258581930,0.04345392,2441.9,2441.7,6.5528]
[1728258582440,0.04345392,2441.9,2441.5,2.14391708]
[1728258582441,0.14583098,2441.9,2441.5,5.42051708]
[1728258582627,0.14583098,2441.9,2441.5,3.2766]
[1728258585418,0.14583098,2441.9,2441.5,5.42051708]
[1728258585600,0.04345392,2441.9,2441.5,5.42051708]
[1728258586062,0.04345392,2441.9,2441.5,5.42357045]
[1728258586601,3.42201149,2441.9,2441.5,5.42357045]
[1728258592362,0.14584149,2441.9,2441.5,2.14697045]
[1728258592525,0.04345392,2441.9,2441.5,5.42357045]
[1728258592727,4.14459762,2442.0,2441.5,5.42357045]
[1728258592950,0.04271328,2441.8,2441.5,5.42357045]
[1728258593133,4.14459762,2442.0,2441.5,5.42357045]
[1728258593331,0.84544652,2441.7,2441.5,2.14697045]
[1728258593537,0.8028,2441.7,2441.5,2.14697045]
[1728258593736,0.04252773,2441.6,2441.5,2.14697045]
[1728258595943,0.04252773,2441.6,2441.4,3.27673]
[1728258596157,0.04252773,2441.6,2441.5,2.14746991]
[1728258596376,0.8028,2441.7,2441.5,2.14746991]
[1728258598588,1.22093478,2441.7,2441.5,2.14746991]
[1728258598946,0.0425208,2441.6,2441.5,2.14746991]
[1728258599884,0.0425208,2441.6,2441.4,5.42426991]
[1728258600081,0.0425208,2441.6,2441.5,2.14746991]
[1728258600577,0.0425208,2441.6,2441.4,3.2768]
[1728258600768,0.0425208,2441.6,2441.5,2.14834611]
[1728258601982,0.0425208,2441.6,2441.4,3.2768]
[1728258602180,0.0425208,2441.6,2441.5,2.14787122]
[1728258602360,0.14491521,2441.6,2441.5,2.14787122]
[1728258602543,0.14491521,2441.6,2441.4,2.14787122]
[1728258602750,0.10239441,2441.6,2441.4,2.14787122]
[1728258604376,0.10239441,2441.6,2441.2,3.27707]
[1728258604680,0.10239441,2441.6,2441.4,2.14748499]
[1728258605080,0.8028,2441.7,2441.4,5.42427499]
[1728258605380,0.04257932,2441.6,2441.4,5.42427499]
[1728258605552,0.04257932,2441.6,2441.4,5.42421499]
[1728258605759,0.04257932,2441.6,2441.4,6.14066478]
[1728258605944,0.8012,2441.9,2441.5,3.27659]
[1728258609083,0.90358787,2441.9,2441.5,3.27659]
[1728258609686,4.17980787,2441.9,2441.4,5.42355837]
[1728258610383,4.17980787,2441.9,2441.4,8.70029837]
[1728258611273,4.17980787,2441.9,2441.5,3.27667]
[1728258612265,0.04265058,2441.8,2441.5,3.27667]
[1728258613364,0.04265058,2441.8,2441.4,5.42355837]
[1728258613596,0.04265058,2441.8,2441.4,8.70029837]
[1728258613958,0.04265058,2441.8,2441.4,5.42355837]
[1728258614159,0.04265058,2441.8,2441.4,5.42216504]
[1728258614355,0.04265058,2441.8,2441.4,5.42229041]
[1728258614557,0.04265058,2441.8,2441.4,8.69903041]
[1728258614975,0.04265058,2441.8,2441.4,5.42229041]
[1728258615172,0.04265058,2441.8,2441.5,3.27665]
[1728258616194,0.04265058,2441.8,2441.5,1.74028294]
[1728258616398,0.04265058,2441.8,2441.6,3.27642]
[1728258618473,0.04265058,2441.8,2441.7,3.2764]
[1728258620761,0.04265058,2441.8,2441.6,3.27642]
[1728258620984,0.14502773,2441.8,2441.5,2.14556041]
[1728258621265,0.7562,2441.7,2441.4,5.42235041]
[1728258621608,0.04247421,2441.6,2441.4,5.42235041]
[1728258622171,0.7562,2441.7,2441.4,5.42235041]
[1728258622607,0.04251736,2441.6,2441.4,5.42230041]
[1728258623012,0.04251736,2441.6,2441.4,2.14556041]
[1728258623190,0.04251736,2441.6,2441.3,2.14556041]
[1728258623191,4.05165,2441.5,2441.3,2.14556041]
[1728258623370,3.37920379,2441.4,2441.3,2.14556041]
[1728258623704,0.14457489,2441.4,2441.3,2.14556041]
[1728258623866,0.14457489,2441.4,2441.2,2.14556041]
[1728258624065,0.14457489,2441.4,2441.3,2.14518133]
[1728258624265,0.14469838,2441.4,2441.3,2.14518133]
[1728258625960,3.42149838,2441.4,2441.3,2.14518133]
[1728258626160,4.18499838,2441.4,2441.3,2.14518133]
[1728258626703,4.60463222,2441.4,2441.2,2.14518133]
[1728258628793,4.60463222,2441.4,2441.0,1.74028294]
[1728258628994,4.18499838,2441.4,2441.2,2.14544148]
[1728258631576,4.23647468,2441.4,2441.2,2.14544148]
[1728258632386,3.27694,2441.3,2441.2,2.14544148]
[1728258632574,3.47307212,2441.3,2441.2,2.14544148]
[1728258632774,3.37066312,2441.3,2441.2,2.14544148]
[1728258632971,0.09372312,2441.3,2441.2,2.14544148]
[1728258633977,3.37066312,2441.3,2441.2,2.14544148]
[1728258634204,4.22441236,2441.3,2441.1,2.1441645]
[1728258634892,0.84506334,2441.3,2441.1,2.1441645]
[1728258635074,0.09372312,2441.3,2441.1,2.1441645]
[1728258635913,0.1961325,2441.3,2441.1,2.1441645]
[1728258638880,0.1961325,2441.3,2441.1,2.14218456]
[1728258639612,0.09372312,2441.3,2441.1,2.14218456]
[1728258640321,0.09372312,2441.3,2441.0,7.1596975]
[1728258640780,0.09372312,2441.3,2441.1,2.14218456]
[1728258641279,0.09372312,2441.3,2441.0,7.1596975]
[1728258641879,0.09372312,2441.3,2441.0,5.41941456]
[1728258642131,0.09372312,2441.3,2441.1,3.8824675]
[1728258643209,0.09372312,2441.3,2441.1,1.74028294]
[1728258644326,0.09372312,2441.3,2441.2,35.0]
[1728258646323,0.19613197,2441.3,2441.2,35.0]
[1728258646817,4.14270885,2441.4,2441.2,35.0]
[1728258647013,0.08764989,2441.3,2441.2,35.0]
[1728258657829,0.10240874,2441.3,2441.2,35.0]
[1728258658002,0.18998764,2441.3,2441.2,35.0]
[1728258658527,0.0875789,2441.3,2441.2,35.0]
[1728258658693,0.18998805,2441.3,2441.2,35.0]
[1728258658894,0.10240915,2441.3,2441.2,35.0]
[1728258659309,0.18996699,2441.3,2441.2,35.0]
[1728258660695,0.10240915,2441.3,2441.2,35.0]
[1728258661233,0.18996699,2441.3,2441.2,35.0]
[1728258661559,0.08755784,2441.3,2441.2,35.0]
[1728258663792,3.46690693,2441.3,2441.2,35.0]
[1728258664331,0.18996693,2441.3,2441.2,35.0]
[1728258664493,0.08755784,2441.3,2441.2,35.0]
[1728258664994,3.36449784,2441.3,2441.2,35.0]
[1728258665507,3.46690796,2441.3,2441.2,35.0]
[1728258666794,3.36449784,2441.3,2441.2,35.0]
[1728258667025,0.08755784,2441.3,2441.2,35.0]
[1728258667329,3.36449784,2441.3,2441.2,35.0]
[1728258673998,0.08755784,2441.3,2441.2,35.0]
[1728258675639,3.36450784,2441.3,2441.0,2.14533629]
[1728258675946,0.10241395,2441.2,2441.0,2.14533629]
[1728258676234,0.08749641,2441.1,2441.0,2.14533629]
[1728258676409,0.08749641,2441.1,2440.9,3.2774]
[1728258676609,0.08749641,2441.1,2441.0,35.0]
[1728258676837,0.10241395,2441.2,2441.0,35.0]
[1728258677035,0.10241395,2441.2,2441.1,2.14533762]
[1728258677225,0.10241395,2441.2,2441.0,35.0]
[1728258677412,0.10241395,2441.2,2441.1,2.14541527]
[1728258677618,3.37914337,2441.5,2441.1,2.14541527]
[1728258677819,0.08749843,2441.2,2441.1,2.14541527]
[1728258678000,3.37914337,2441.5,2441.0,43.29480294]
[1728258678218,3.37914337,2441.5,2441.2,2.14535813]
[1728258678417,3.27682,2441.4,2441.2,2.14535813]
[1728258678813,3.2768,2441.4,2441.2,2.14535813]
[1728258681718,3.2768,2441.4,2441.3,35.0]
[1728258684722,4.07425,2441.6,2441.3,35.0]
[1728258684920,3.27655,2441.6,2441.3,40.86119832]
[1728258685150,3.3790899,2441.5,2441.3,35.0]
[1728258685463,0.0847536,2441.4,2441.3,35.0]
[1728258685748,0.1023999,2441.5,2441.3,35.0]
[1728258686244,0.0847536,2441.4,2441.3,35.0]
[1728258686416,0.1023999,2441.5,2441.3,35.0]
[1728258686748,0.08396693,2441.4,2441.3,35.0]
[1728258686946,0.08396693,2441.4,2441.3,39.09492025]
[1728258687249,0.1023999,2441.5,2441.3,39.09492025]
[1728258687915,3.3791099,2441.5,2441.3,39.09492025]
[1728258690680,0.08396693,2441.4,2441.3,39.09492025]
[1728258691064,3.36076693,2441.4,2441.3,39.09492025]
[1728258691362,3.36076693,2441.4,2441.3,35.0]
[1728258700482,3.36076693,2441.4,2441.2,2.14637187]
[1728258701080,0.08396693,2441.4,2441.3,35.0]
[1728258702743,3.36076693,2441.4,2441.3,35.0]
[1728258702943,3.46317078,2441.4,2441.3,35.0]
[1728258707391,0.18637078,2441.4,2441.3,35.0]
[1728258709580,0.08396693,2441.4,2441.3,35.0]
[1728258714222,3.27668,2441.5,2441.3,37.14575502]
[1728258714430,0.08064431,2441.4,2441.3,37.14575502]
[1728258714793,0.18304748,2441.4,2441.3,37.14575502]
[1728258715026,0.08064431,2441.4,2441.3,37.14575502]
[1728258717298,0.08064431,2441.4,2441.3,35.0]
[1728258717505,3.37908316,2441.5,2441.3,37.14575502]
[1728258717687,3.27668,2441.5,2441.3,37.14575502]
[1728258717886,0.08072855,2441.4,2441.3,37.14575502]
[1728258718126,6.55343,2441.5,2441.3,37.14575502]
[1728258718526,0.08064431,2441.4,2441.3,37.14575502]
[1728258718727,0.18304737,2441.4,2441.3,35.0]
[1728258718935,6.65585306,2441.5,2441.3,35.0]
[1728258719301,0.08064431,2441.4,2441.3,35.0]
[1728258720160,3.35744431,2441.4,2441.3,35.0]
[1728258720704,3.35744431,2441.4,2441.3,37.14575502]
[1728258720942,3.35744431,2441.4,2441.3,35.0]
[1728258721309,3.35744431,2441.4,2441.3,37.1479594]
[1728258723139,3.35744431,2441.4,2441.3,35.0]
[1728258723441,3.35744431,2441.4,2441.3,37.1479594]
[1728258726116,3.35744431,2441.4,2441.3,35.0]
[1728258726747,3.35744431,2441.4,2441.3,37.14719086]
[1728258727369,0.08064431,2441.4,2441.3,37.14719086]
[1728258727670,0.08064431,2441.4,2441.3,39.04243609]
[1728258727974,3.27649,2441.7,2441.3,39.04243609]
[1728258728145,3.27649,2441.7,2441.4,2.14662058]
[1728258728475,0.07936845,2441.6,2441.4,3.88690352]
[1728258728632,3.27628,2441.8,2441.5,2.1463566]
[1728258728839,3.27628,2441.8,2441.6,2.1463566]
[1728258729536,6.55263,2441.8,2441.6,2.1463566]
[1728258729772,3.27628,2441.8,2441.6,2.1463566]
[1728258730274,3.27628,2441.8,2441.5,4.08833017]
[1728258730478,3.27628,2441.8,2441.7,35.0]
[1728258732438,3.35580949,2441.8,2441.7,35.0]
[1728258733389,3.35580949,2441.8,2441.5,4.08680408]
[1728258733533,3.35580949,2441.8,2441.6,0.5827087]
[1728258733944,3.35580949,2441.8,2441.7,35.0]
[1728258735459,3.45819535,2441.8,2441.7,35.0]
[1728258737562,3.27661,2441.6,2441.4,2.14317993]
[1728258737792,3.27667,2441.5,2441.3,2.14317993]
[1728258737996,3.27667,2441.5,2441.4,35.0]
[1728258737997,3.35591971,2441.5,2441.4,35.0]
[1728258742465,4.84271276,2441.5,2441.4,35.0]
[1728258742679,4.94511465,2441.5,2441.4,35.0]
[1728258744390,4.2716216,2441.5,2441.4,35.0]
[1728258748167,3.27687,2441.4,2441.2,2.14435613]
[1728258748367,3.37927358,2441.4,2441.2,2.14435613]
[1728258748674,3.35610658,2441.3,2441.2,2.14435613]
[1728258749165,3.35610658,2441.3,2441.2,37.14435613]
[1728258750612,0.07916658,2441.3,2441.2,37.14435613]
[1728258750781,0.07916658,2441.3,2441.2,37.14462085]
[1728258751598,3.35610658,2441.3,2441.2,37.14462085]
[1728258753506,3.35610658,2441.3,2441.2,35.0]
[1728258753695,3.27721,2441.1,2441.0,2.14462085]
[1728258753866,3.37962935,2441.1,2441.0,2.14462085]
[1728258754182,3.4589914,2441.1,2441.0,37.14462085]
[1728258754386,4.28899365,2441.1,2441.0,35.0]
[1728258754585,4.2096316,2441.1,2441.0,35.0]
[1728258754888,4.28886131,2441.1,2441.0,35.0]
[1728258758184,3.27742,2441.0,2440.6,2.14575158]
[1728258758585,0.07893232,2440.9,2440.6,2.14575158]
[1728258759206,0.07893232,2440.9,2440.7,35.0]
[1728258761219,0.18135221,2440.9,2440.7,35.0]
[1728258761403,3.27761,2440.8,2440.7,35.0]
[1728258761614,3.2779,2440.6,2440.4,2.14480793]
[1728258761916,3.2779,2440.6,2440.3,1.74028294]
[1728258761917,0.07868125,2440.5,2440.3,3.88509087]
[1728258762217,0.07868125,2440.5,2440.3,38.88509087]
[1728258762886,0.07868125,2440.5,2440.3,37.14480793]
[1728258763098,0.07868125,2440.5,2440.3,35.0]
[1728258764952,0.18111927,2440.5,2440.3,35.0]
[1728258765837,0.07868125,2440.5,2440.3,35.0]
[1728258768337,0.07868125,2440.5,2440.1,8.69999956]
[1728258768871,0.07868125,2440.5,2440.2,36.74028294]
[1728258769033,3.38032336,2440.6,2440.2,36.74028294]
[1728258771257,6.65830336,2440.6,2440.2,36.74028294]
[1728258771573,3.38032336,2440.6,2440.2,36.74028294]
[1728258772864,3.27809,2440.5,2440.2,36.74028294]
[1728258773242,3.35681178,2440.5,2440.2,36.74028294]
[1728258773953,0.07872178,2440.5,2440.2,36.74028294]
[1728258774168,3.27815,2440.4,2440.2,36.74028294]
[1728258774476,3.27815,2440.4,2440.2,35.0]
[1728258774632,4.04455,2440.4,2440.2,35.0]
[1728258775986,0.7664,2440.4,2440.2,35.0]
[1728258776984,3.38072369,2440.3,2440.2,35.0]
[1728258777383,3.45886143,2440.3,2440.2,35.0]
[1728258778733,0.8231,2440.1,2439.8,1.74028294]
[1728258778920,0.07788404,2440.0,2439.8,1.74028294]
[1728258779068,0.07788404,2440.0,2439.9,35.0]
[1728258779467,0.92554369,2440.3,2439.9,38.27882]
[1728258779784,0.07805584,2440.2,2439.9,35.0]
[1728258780105,4.20391369,2440.3,2439.9,35.0]
[1728258780259,0.18049548,2440.2,2439.9,35.0]
[1728258780891,0.07803921,2440.2,2439.9,35.0]
[1728258781066,4.20391624,2440.3,2439.9,35.0]
[1728258781267,0.07273201,2440.1,2439.9,35.0]
[1728258781504,4.20391624,2440.3,2439.9,35.0]
[1728258781707,0.07283941,2440.2,2439.9,35.0]
[1728258781918,4.20391624,2440.3,2439.9,35.0]
[1728258782102,0.07283941,2440.2,2439.9,35.0]
[1728258782274,0.10245622,2440.2,2439.9,35.0]
[1728258782469,0.07275308,2440.1,2439.9,35.0]
[1728258783821,0.07275308,2440.1,2439.8,1.74028294]
[1728258784596,0.07275308,2440.1,2439.7,3.27898]
[1728258784906,0.07275308,2440.1,2440.0,35.0]
[1728258785306,0.10245622,2440.2,2440.0,35.0]
[1728258785934,0.07268111,2440.1,2440.0,35.0]
[1728258787081,3.35123111,2440.1,2440.0,35.0]
[1728258787948,0.07268111,2440.1,2440.0,35.0]
[1728258789340,0.07268111,2440.1,2439.7,3.27898]
[1728258789843,0.07268111,2440.1,2439.8,35.0]
[1728258792456,0.07268111,2440.1,2439.8,40.01912294]
[1728258792665,0.07268111,2440.1,2440.0,5.01896294]
[1728258792822,7.45,2440.6,2440.0,1.74028294]
[1728258793032,4.10892,2440.7,2440.3,1.74028294]
[1728258793359,3.3803367,2440.6,2440.4,35.0]
[1728258793711,0.1024367,2440.6,2440.4,35.0]
[1728258794937,3.27801,2440.5,2440.4,35.0]
[1728258795771,3.3803167,2440.6,2440.4,35.0]
[1728258796270,4.10892,2440.7,2440.4,35.0]
[1728258796477,4.21135668,2440.7,2440.4,35.0]
[1728258796772,4.10892,2440.7,2440.4,35.0]
[1728258797489,3.38031669,2440.6,2440.4,35.0]
[1728258797898,3.38031669,2440.6,2440.2,5.01869294]
[1728258798373,3.38031669,2440.6,2440.3,35.0]
[1728258798828,3.27802,2440.5,2440.3,35.0]
[1728258799034,0.8113,2440.4,2440.3,35.0]
[1728258800972,3.94800353,2440.6,2440.3,35.0]
[1728258801471,3.38032466,2440.6,2440.3,35.0]
[1728258803508,3.38032466,2440.6,2440.1,5.42333377]
[1728258804060,3.38032466,2440.6,2440.2,35.0]
[1728258805096,3.38032466,2440.6,2440.2,38.27841]
[1728258805302,3.38032466,2440.6,2440.2,42.16349671]
[1728258805602,3.27788,2440.6,2440.2,42.16349671]
[1728258807690,3.27788,2440.6,2440.2,38.88508671]
[1728258807926,0.7811,2440.7,2440.3,3.27826]
[1728258808270,2.495144,2441.3,2440.3,3.27826]
[1728258808271,0.06842849,2440.6,2440.5,3.27801]
[1728258808482,0.8284,2440.9,2440.6,1.74028294]
[1728258808810,0.06864699,2440.8,2440.5,2.14705789]
[1728258808973,0.06864699,2440.8,2440.5,3.44906092]
[1728258810370,0.06864699,2440.8,2440.5,6.72707092]
[1728258810899,0.8284,2440.9,2440.5,6.72707092]
[1728258811280,0.06874963,2440.8,2440.5,6.72707092]
[1728258811605,0.06874963,2440.8,2440.6,1.74028294]
[1728258811807,0.06874963,2440.8,2440.7,0.51893439]
[1728258812009,4.1941336,2441.1,2440.7,0.51893439]
[1728258812221,0.06880303,2440.8,2440.7,35.51893439]
[1728258812500,4.1941336,2441.1,2440.7,35.51893439]
[1728258812998,0.06938137,2441.0,2440.8,1.74028294]
[1728258813199,0.06938137,2441.0,2440.8,5.83520319]
[1728258813421,6.65672104,2441.2,2440.8,1.74028294]
[1728258813566,0.06931618,2440.9,2440.8,1.74028294]
[1728258813768,6.65672104,2441.2,2440.8,1.74028294]
[1728258813963,0.06950973,2441.1,2440.8,1.74028294]
[1728258814188,0.06950973,2441.1,2440.9,35.0]
[1728258815109,3.34672973,2441.1,2440.9,35.0]
[1728258815422,3.44914663,2441.1,2440.8,1.74028294]
[1728258815779,3.44914663,2441.1,2440.8,36.74028294]
[1728258817085,0.06950973,2441.1,2440.8,40.83520319]
[1728258817429,0.06950973,2441.1,2440.8,44.11280319]
[1728258818482,3.34671973,2441.1,2440.8,40.83520319]
[1728258818831,3.34671973,2441.1,2440.8,39.09492025]
[1728258818832,0.06950973,2441.1,2440.8,39.09492025]
[1728258819122,0.06950973,2441.1,2440.8,35.0]
[1728258829096,0.06950973,2441.1,2440.8,38.2776]
[1728258829507,0.06950973,2441.1,2440.8,35.0]
[1728258834733,0.06950973,2441.1,2440.9,1.74028294]
[1728258834922,4.1938628,2441.3,2440.9,9.01954823]
[1728258835223,0.06674243,2441.2,2440.9,1.74028294]
[1728258835470,0.06674243,2441.2,2440.9,36.74028294]
[1728258835633,3.27709,2441.2,2440.9,36.74028294]
[1728258835794,3.27709,2441.2,2440.9,35.0]
[1728258835992,0.06668354,2441.1,2440.9,35.0]
[1728258836190,0.06668354,2441.1,2440.9,39.00179529]
[1728258838842,0.06668354,2441.1,2440.9,4.00179529]
[1728258839244,0.06668354,2441.1,2441.0,35.0]
[1728258841855,0.06668354,2441.1,2440.7,8.29563294]
[1728258842454,0.06668354,2441.1,2440.8,35.0]
[1728258842754,0.06668354,2441.1,2440.8,38.27754]
[1728258843001,0.06668354,2441.1,2440.9,5.01768294]
[1728258843164,3.27681,2441.4,2440.9,5.01768294]
[1728258843165,3.27681,2441.4,2441.0,4.09492025]
[1728258843461,0.06685422,2441.3,2440.9,5.01768294]
[1728258843658,0.06685422,2441.3,2441.0,35.0]
[1728258844924,4.13060422,2441.3,2441.0,35.0]
[1728258845125,0.06684863,2441.2,2441.0,35.0]
[1728258845548,4.06375,2441.3,2441.0,35.0]
[1728258846151,3.34393969,2441.2,2441.0,35.0]
[1728258846336,3.34393969,2441.2,2441.0,39.00178829]
[1728258846741,3.27707,2441.2,2441.0,39.00178829]
[1728258848873,0.92560715,2441.1,2441.0,4.00178829]
[1728258849168,3.27743,2441.0,2440.6,2.1460061]
[1728258849341,3.27743,2441.0,2440.7,35.0]
[1728258849544,0.06664781,2440.9,2440.7,35.0]
[1728258850122,3.27743,2441.0,2440.7,35.0]
[1728258850526,0.06430215,2440.9,2440.7,35.0]
[1728258850865,3.27743,2441.0,2440.7,35.0]
[1728258851026,4.10041,2441.1,2440.7,39.04255637]
[1728258851218,0.06438841,2441.0,2440.7,39.04255637]
[1728258852462,3.34179841,2441.0,2440.7,39.04255637]
[1728258853240,3.34179841,2441.0,2440.7,41.19013009]
[1728258853440,3.34179841,2441.0,2440.7,39.04255637]
[1728258854153,3.34179841,2441.0,2440.7,41.19013009]
[1728258854154,0.06438841,2441.0,2440.7,41.19013009]
[1728258855171,0.06438841,2441.0,2440.7,41.19172232]
[1728258855543,0.06438841,2441.0,2440.7,41.1917168]
[1728258856476,3.34172841,2441.0,2440.7,37.14916043]
[1728258857573,3.34172841,2441.0,2440.7,35.0]
[1728258858006,0.814,2440.9,2440.7,35.0]
[1728258858230,0.06421588,2440.8,2440.7,35.0]
[1728258858520,0.814,2440.9,2440.7,35.0]
[1728258858929,0.06421588,2440.8,2440.7,35.0]
[1728258859297,3.27761,2440.8,2440.7,35.0]
[1728258859622,3.34182588,2440.8,2440.7,35.0]
[1728258859997,0.06421588,2440.8,2440.7,35.0]
[1728258862514,0.06421588,2440.8,2440.6,5.01807294]
[1728258862831,3.27728,2441.1,2440.7,1.04452598]
[1728258863035,3.27728,2441.1,2440.7,35.0]
[1728258863348,6.55457,2441.1,2440.7,35.0]
[1728258863853,3.27735,2441.0,2440.7,35.0]
[1728258864503,4.09159,2440.9,2440.7,35.0]
[1728258865853,0.8141,2440.9,2440.7,35.0]
[1728258867250,0.06418524,2440.8,2440.7,35.0]
[1728258867752,0.06418524,2440.8,2440.5,5.42653325]
[1728258867923,0.06418524,2440.8,2440.6,0.71668162]
[1728258868124,0.06418524,2440.8,2440.7,35.0]
[1728258871751,0.86731911,2441.1,2440.7,35.0]
[1728258871752,4.14465911,2441.1,2440.7,35.0]
[1728258871936,0.0642063,2440.8,2440.7,35.0]
[1728258872145,4.14465911,2441.1,2440.7,39.09492025]
[1728258872621,0.06437884,2441.0,2440.7,39.09492025]
[1728258873444,3.34178884,2441.0,2440.7,39.09492025]
[1728258876655,0.06437884,2441.0,2440.7,39.09492025]
[1728258876878,3.34171884,2441.0,2440.7,39.09492025]
[1728258877057,3.34171884,2441.0,2440.7,35.0]
[1728258877556,3.27748,2440.9,2440.7,35.0]
[1728258877922,0.064237,2440.8,2440.7,35.0]
[1728258884695,0.064237,2440.8,2440.5,3.27799]
[1728258885071,0.064237,2440.8,2440.6,35.0]
[1728258887269,3.27735,2441.0,2440.6,35.0]
[1728258887482,0.06203967,2440.7,2440.6,35.0]
[1728258887688,3.27735,2441.0,2440.6,35.0]